fUST/lending_fUST_20241115
["ID","MTS","AMOUNT","RATE_DAILY","PERIOD"]
[342262994,1731679835823,-157.0,0.0001407,2]
[342262995,1731679835840,-157.0,0.0001407,2]
[342262996,1731679835850,-157.0,0.0001407,2]
[342262997,1731679835859,-157.0,0.0001407,2]
[342262998,1731679835868,-157.0,0.0001407,2]
[342262999,1731679835880,-157.0,0.0001407,2]
[342263000,1731679835890,-157.0,0.0001407,2]
[342263001,1731679835899,-157.0,0.0001407,2]
[342263002,1731679835909,-157.0,0.0001407,2]
[342263003,1731679835918,-157.0,0.0001407,2]
[342263004,1731679835927,-157.0,0.0001407,2]
[342263005,1731679835938,-157.0,0.0001407,2]
[342263006,1731679835948,-153.0,0.0001407,2]
[342263007,1731679835958,-153.0,0.0001407,2]
[342263008,1731679835967,-157.0,0.0001407,2]
[342263009,1731679835977,-157.0,0.0001407,2]
[342263010,1731679835986,-157.0,0.0001407,2]
[342263011,1731679835995,-157.0,0.0001407,2]
[342263012,1731679836005,-157.0,0.0001407,2]
[342263013,1731679836014,-157.0,0.0001407,2]
[342263014,1731679836023,-157.0,0.0001407,2]
[342263015,1731679836032,-157.0,0.0001407,2]
[342263016,1731679836040,-157.0,0.0001407,2]
[342263017,1731679836050,-157.0,0.0001407,2]
[342263018,1731679836059,-157.0,0.0001407,2]
[342263019,1731679836068,-157.0,0.0001407,2]
[342263020,1731679836078,-157.0,0.0001407,2]
[342263021,1731679836092,-157.0,0.0001407,2]
[342263022,1731679836101,-153.0,0.0001407,2]
[342263023,1731679836110,-153.0,0.0001407,2]
[342263024,1731679836119,-157.0,0.0001407,2]
[342263025,1731679836128,-157.0,0.0001407,2]
[342263026,1731679836137,-157.0,0.0001407,2]
[342263027,1731679836146,-157.0,0.0001407,2]
[342263028,1731679836156,-157.0,0.0001407,2]
[342263029,1731679836165,-157.0,0.0001407,2]
[342263030,1731679836174,-157.0,0.0001407,2]
[342263031,1731679836184,-157.0,0.0001407,2]
[342263032,1731679836193,-157.0,0.0001407,2]
[342263033,1731679836202,-157.0,0.0001407,2]
[342263034,1731679836211,-157.0,0.0001407,2]
[342263035,1731679836220,-157.0,0.0001407,2]
[342263036,1731679836229,-157.0,0.0001407,2]
[342263037,1731679836239,-157.0,0.0001407,2]
[342263038,1731679836248,-153.0,0.0001407,2]
[342263039,1731679836257,-153.0,0.0001407,2]
[342263040,1731679836266,-157.0,0.0001407,2]
[342263041,1731679836276,-157.0,0.0001407,2]
[342263042,1731679836285,-157.0,0.0001407,2]
[342263043,1731679836294,-157.0,0.0001407,2]
[342263044,1731679836302,-157.0,0.0001407,2]
[342263045,1731679836310,-157.0,0.0001407,2]
[342263046,1731679836318,-157.0,0.0001407,2]
[342263047,1731679836327,-157.0,0.0001407,2]
[342263048,1731679836342,-157.0,0.0001407,2]
[342263049,1731679836356,-157.0,0.0001407,2]
[342263050,1731679836365,-157.0,0.0001407,2]
[342263051,1731679836375,-157.0,0.0001407,2]
[342263052,1731679836385,-157.0,0.0001407,2]
[342263053,1731679836394,-157.0,0.0001407,2]
[342263054,1731679836404,-153.0,0.0001407,2]
[342263055,1731679836413,-153.0,0.0001407,2]
[342263056,1731679836423,-157.0,0.0001407,2]
[342263057,1731679836433,-157.0,0.0001407,2]
[342263058,1731679836443,-157.0,0.0001407,2]
[342263059,1731679836452,-157.0,0.0001407,2]
[342263060,1731679836461,-157.0,0.0001407,2]
[342263061,1731679836471,-157.0,0.0001407,2]
[342263062,1731679836480,-157.0,0.0001407,2]
[342263063,1731679836501,-157.0,0.0001407,2]
[342263064,1731679836511,-157.0,0.0001407,2]
[342263065,1731679836521,-150.112233,0.000142,2]
[342263066,1731679836530,-1098.68,0.00014211,2]
[342263067,1731679836540,-264.61901046,0.00014243,2]
[342263068,1731679836549,-1820.00989793,0.00014243,2]
[342263069,1731679836558,-500.0,0.00014244,2]
[342263070,1731679836568,-1098.68,0.00014245,2]
[342263071,1731679836578,-1098.68,0.00014245,2]
[342263072,1731679836596,-1098.68,0.00014245,2]
[342263073,1731679836605,-1098.68,0.00014245,2]
[342263074,1731679836615,-151.935076,0.00014245,2]
[342263075,1731679836625,-151.0,0.00014245,2]
[342263076,1731679836636,-151.935076,0.00014245,2]
[342263077,1731679836646,-151.0,0.00014246,2]
[342263078,1731679836657,-151.0,0.00014246,2]
[342263079,1731679836667,-151.0,0.00014246,2]
[342263080,1731679836678,-285.0246985,0.00014246,2]
[342263081,1731679836688,-500.0,0.00014246,2]
[342263082,1731679836700,-151.0,0.00014246,2]
[342263083,1731679836713,-151.0,0.00014246,2]
[342263084,1731679836723,-151.0,0.00014246,2]
[342263085,1731679836732,-151.0,0.00014246,2]
[342263086,1731679836742,-500.0,0.00014246,2]
[342263087,1731679836752,-270.56,0.00014246,2]
[342263088,1731679836761,-174.87600872,0.00014246,2]
[342263089,1731679836770,-151.0,0.00014246,2]
[342263090,1731679836779,-500.0,0.00014246,2]
[342263091,1731679836789,-500.0,0.00014246,2]
[342263092,1731679836798,-151.0,0.00014246,2]
[342263093,1731679836808,-650.94,0.00014246,2]
[342263094,1731679836817,-500.0,0.00014246,2]
[342263095,1731679836827,-500.0,0.00014246,2]
[342263096,1731679836842,-500.0,0.00014246,2]
[342263097,1731679836851,-500.0,0.00014246,2]
[342263098,1731679836860,-500.0,0.00014246,2]
[342263099,1731679836869,-500.0,0.00014246,2]
[342263100,1731679836878,-500.0,0.00014246,2]
[342263101,1731679836887,-665.96,0.00014246,2]
[342263102,1731679836896,-500.0,0.00014246,2]
[342263103,1731679836905,-320.47262159,0.00014246,2]
[342263104,1731679836914,-500.0,0.00014246,2]
[342263105,1731679836923,-500.0,0.00014246,2]
[342263106,1731679836932,-500.0,0.00014246,2]
[342263107,1731679836942,-2336.0,0.00014246,2]
[342263108,1731679836951,-500.0,0.00014246,2]
[342263109,1731679836960,-500.0,0.00014246,2]
[342263110,1731679836970,-500.09944167,0.00014246,2]
[342263111,1731679836979,-503.59,0.00014246,2]
[342263112,1731679836988,-500.0,0.00014246,2]
[342263113,1731679836998,-500.0,0.00014246,2]
[342263114,1731679837007,-500.0,0.00014246,2]
[342263115,1731679837016,-500.0,0.00014246,2]
[342263116,1731679837025,-500.0,0.00014246,2]
[342263117,1731679837035,-604.27,0.00014246,2]
[342263118,1731679837044,-156.035794,0.00014246,2]
[342263119,1731679837053,-274.53504341,0.00014246,2]
[342263120,1731679837063,-500.0,0.00014246,2]
[342263121,1731679837072,-151.0,0.00014246,2]
[342263122,1731679837086,-500.0,0.00014246,2]
[342263123,1731679837095,-1198.91,0.00014246,2]
[342263124,1731679837104,-500.0,0.00014246,2]
[342263125,1731679837113,-151.0,0.00014246,2]
[342263126,1731679837122,-151.935076,0.00014246,2]
[342263127,1731679837131,-151.0,0.00014246,2]
[342263128,1731679837140,-151.935076,0.00014246,2]
[342263129,1731679837149,-799.17,0.00014246,2]
[342263130,1731679837159,-500.0,0.00014246,2]
[342263131,1731679837168,-500.0,0.00014246,2]
[342263132,1731679837177,-1862.68,0.00014246,2]
[342263133,1731679837186,-500.0,0.00014246,2]
[342263134,1731679837195,-168.53604938,0.00014246,2]
[342263135,1731679837204,-251.97667487,0.00014246,2]
[342263136,1731679837213,-157.7433871,0.00014246,2]
[342263137,1731679837223,-2066.06,0.00014246,2]
[342263138,1731679837233,-500.0,0.00014246,2]
[342263139,1731679837243,-500.0,0.00014246,2]
[342263140,1731679837253,-150.75722712,0.00014246,2]
[342263141,1731679837262,-755.43,0.00014246,2]
[342263142,1731679837271,-500.0,0.00014246,2]
[342263143,1731679837280,-167.258974,0.00014246,2]
[342263144,1731679837289,-500.0,0.00014246,2]
[342263145,1731679837298,-151.0,0.00014246,2]
[342263146,1731679837307,-167.258974,0.00014246,2]
[342263147,1731679837317,-500.0,0.00014246,2]
[342263148,1731679837326,-500.0,0.00014246,2]
[342263149,1731679837337,-1270.08,0.00014246,2]
[342263150,1731679837347,-1379.72,0.00014246,2]
[342263151,1731679837361,-500.0,0.00014246,2]
[342263152,1731679837370,-500.0,0.00014246,2]
[342263153,1731679837380,-500.0,0.00014246,2]
[342263154,1731679837390,-571.99,0.00014246,2]
[342263155,1731679837400,-151.0,0.00014246,2]
[342263156,1731679837409,-500.0,0.00014246,2]
[342263157,1731679837419,-500.0,0.00014246,2]
[342263158,1731679837429,-500.0,0.00014246,2]
[342263159,1731679837438,-528.21,0.00014246,2]
[342263160,1731679837448,-500.0,0.00014246,2]
[342263162,1731679837458,-7133.29,0.00014246,2]
[342263164,1731679837467,-500.0,0.00014246,2]
[342263165,1731679837477,-1580.35,0.00014246,2]
[342263166,1731679837486,-291.73031754,0.00014246,2]
[342263167,1731679837498,-500.0,0.00014246,2]
[342263168,1731679837507,-500.0,0.00014246,2]
[342263169,1731679837517,-593.31,0.00014246,2]
[342263170,1731679837526,-200.43831208,0.00014246,2]
[342263171,1731679837536,-500.0,0.00014246,2]
[342263172,1731679837545,-500.0,0.00014246,2]
[342263173,1731679837554,-6956.94,0.00014246,2]
[342263174,1731679837563,-271.71840667,0.00014246,2]
[342263175,1731679837573,-568.34,0.00014246,2]
[342263176,1731679837585,-500.0,0.00014246,2]
[342263178,1731679837596,-1098.68,0.00014248,2]
[342263179,1731679837606,-2016.0,0.00014295,2]
[342263180,1731679837615,-190.752308,0.000143,2]
[342263181,1731679837624,-500.0,0.00014369,2]
[342263182,1731679837633,-999.999999,0.0001438,2]
[342263183,1731679837642,-1723.842523,0.00014384,2]
[342263184,1731679837652,-150.112233,0.000144,2]
[342263185,1731679837662,-150.112233,0.000144,2]
[342263186,1731679837671,-150.112233,0.000145,2]
[342263187,1731679837680,-150.112233,0.000145,2]
[342263188,1731679837689,-150.112233,0.000145,2]
[342263189,1731679837699,-565.456133,0.00014519,2]
[342263190,1731679837708,-565.456133,0.00014519,2]
[342263191,1731679837718,-1098.68,0.00014519,2]
[342263192,1731679837727,-1098.68,0.00014519,2]
[342263193,1731679837736,-1098.68,0.00014519,2]
[342263195,1731679837746,-1098.68,0.00014519,2]
[342263196,1731679837755,-1098.68,0.00014519,2]
[342263198,1731679837764,-1098.68,0.00014519,2]
[342263200,1731679837773,-1098.85960066,0.00014519,2]
[342263203,1731679837783,-151.0,0.00014519,2]
[342263204,1731679837792,-500.0,0.0001452,2]
[342263206,1731679837801,-157.90420659,0.0001452,2]
[342263207,1731679837811,-151.0,0.0001452,2]
[342263208,1731679837820,-500.0,0.0001452,2]
[342263209,1731679837829,-151.0,0.0001452,2]
[342263211,1731679837842,-151.0,0.0001452,2]
[342263213,1731679837851,-500.0,0.0001452,2]
[342263215,1731679837860,-151.0,0.0001452,2]
[342263216,1731679837870,-151.0,0.0001452,2]
[342263217,1731679837995,-153.683452,0.0001452,2]
[342263218,1731679838004,-151.0,0.0001452,2]
[342263220,1731679838014,-151.0,0.0001452,2]
[342263222,1731679838023,-151.0,0.0001452,2]
[342263224,1731679838032,-500.0,0.0001452,2]
[342263225,1731679838041,-151.0,0.0001452,2]
[342263226,1731679838051,-650.94,0.0001452,2]
[342263228,1731679838060,-500.0,0.0001452,2]
[342263229,1731679838069,-500.0,0.0001452,2]
[342263230,1731679838079,-500.0,0.0001452,2]
[342263231,1731679838091,-500.0,0.0001452,2]
[342263232,1731679838100,-500.0,0.0001452,2]
[342263233,1731679838110,-500.0,0.0001452,2]
[342263234,1731679838119,-665.96,0.0001452,2]
[342263235,1731679838129,-500.0,0.0001452,2]
[342263236,1731679838139,-161.52516735,0.0001452,2]
[342263238,1731679838149,-500.0,0.0001452,2]
[342263240,1731679838159,-500.0,0.0001452,2]
[342263241,1731679838168,-231.04712138,0.0001452,2]
[342263243,1731679838177,-2336.0,0.0001452,2]
[342263244,1731679838187,-500.0,0.0001452,2]
[342263245,1731679838196,-500.0,0.0001452,2]
[342263246,1731679838205,-500.0,0.0001452,2]
[342263247,1731679838214,-500.0,0.0001452,2]
[342263248,1731679838223,-500.0,0.0001452,2]
[342263249,1731679838233,-500.0,0.0001452,2]
[342263250,1731679838242,-500.0,0.0001452,2]
[342263251,1731679838251,-604.27,0.0001452,2]
[342263252,1731679838260,-205.07,0.0001452,2]
[342263253,1731679838269,-151.0,0.0001452,2]
[342263254,1731679838278,-500.0,0.0001452,2]
[342263255,1731679838288,-1198.91,0.0001452,2]
[342263256,1731679838297,-500.0,0.0001452,2]
[342263257,1731679838306,-151.0,0.0001452,2]
[342263258,1731679838316,-151.935076,0.0001452,2]
[342263259,1731679838326,-151.935076,0.0001452,2]
[342263260,1731679838342,-799.17,0.0001452,2]
[342263261,1731679838355,-500.0,0.0001452,2]
[342263262,1731679838367,-500.0,0.0001452,2]
[342263263,1731679838378,-1862.68,0.0001452,2]
[342263264,1731679838387,-500.0,0.0001452,2]
[342263265,1731679838400,-2066.06,0.0001452,2]
[342263266,1731679838409,-755.43,0.0001452,2]
[342263267,1731679838421,-500.0,0.0001452,2]
[342263268,1731679838431,-167.258974,0.0001452,2]
[342263269,1731679838442,-500.0,0.0001452,2]
[342263270,1731679838452,-151.0,0.0001452,2]
[342263271,1731679838462,-419.68329667,0.0001452,2]
[342263272,1731679838472,-167.258974,0.0001452,2]
[342263273,1731679838481,-292.98843295,0.0001452,2]
[342263274,1731679838491,-1270.08,0.0001452,2]
[342263275,1731679838500,-1379.72,0.0001452,2]
[342263276,1731679838510,-500.0,0.0001452,2]
[342263277,1731679838519,-624.57806849,0.0001452,2]
[342263278,1731679838528,-500.0,0.0001452,2]
[342263279,1731679838539,-571.99,0.0001452,2]
[342263280,1731679838548,-289.137633,0.0001452,2]
[342263281,1731679838557,-362.71507227,0.0001452,2]
[342263282,1731679838566,-500.0,0.0001452,2]
[342263283,1731679838575,-500.0,0.0001452,2]
[342263284,1731679838588,-528.21,0.0001452,2]
[342263285,1731679838598,-500.0,0.0001452,2]
[342263286,1731679838609,-7133.29,0.0001452,2]
[342263287,1731679838618,-500.0,0.0001452,2]
[342263288,1731679838627,-1580.35,0.0001452,2]
[342263289,1731679838637,-500.0,0.0001452,2]
[342263290,1731679838646,-500.0,0.0001452,2]
[342263291,1731679838656,-568.29441532,0.0001452,2]
[342263292,1731679838862,-491.25086405,0.00013711,2]
[342263293,1731679838873,-9784.80912387,0.00013711,2]
[342263294,1731679838882,-25.01558468,0.0001452,2]
[342263295,1731679838892,-500.0,0.0001452,2]
[342263296,1731679838902,-500.0,0.0001452,2]
[342263297,1731679838912,-6956.94,0.0001452,2]
[342263298,1731679838920,-568.34,0.0001452,2]
[342263299,1731679838930,-541.55777877,0.0001452,2]
[342263300,1731679838940,-150.112233,0.000146,2]
[342263301,1731679838950,-150.112233,0.000146,2]
[342263302,1731679838961,-150.112233,0.000146,2]
[342263303,1731679838970,-150.112233,0.000146,2]
[342263304,1731679838979,-150.112237,0.000147,2]
[342263305,1731679838988,-150.112233,0.000147,2]
[342263306,1731679838997,-150.112233,0.000147,2]
[342263307,1731679839006,-150.112233,0.000147,2]
[342263308,1731679839016,-150.112233,0.000147,2]
[342263309,1731679839026,-565.456133,0.00014793,2]
[342263310,1731679839036,-565.456133,0.00014793,2]
[342263311,1731679839046,-500.0,0.00014794,2]
[342263312,1731679839056,-200.46196833,0.00014794,2]
[342263313,1731679839066,-600.0,0.00014794,2]
[342263314,1731679839076,-151.0,0.00014794,2]
[342263315,1731679839093,-151.0,0.00014794,2]
[342263316,1731679839102,-500.0,0.00014794,2]
[342263317,1731679839111,-151.0,0.00014794,2]
[342263318,1731679839120,-151.0,0.00014794,2]
[342263319,1731679839129,-151.0,0.00014794,2]
[342263320,1731679839139,-151.0,0.00014794,2]
[342263321,1731679839148,-151.0,0.00014794,2]
[342263322,1731679839158,-151.0,0.00014794,2]
[342263323,1731679839168,-151.0,0.00014794,2]
[342263324,1731679839178,-500.0,0.00014794,2]
[342263325,1731679839187,-151.0,0.00014794,2]
[342263326,1731679839197,-151.0,0.00014794,2]
[342263327,1731679839207,-151.0,0.00014794,2]
[342263328,1731679839216,-1555.339311,0.00014794,2]
[342263329,1731679839226,-1555.339311,0.00014794,2]
[342263330,1731679839235,-151.0,0.00014794,2]
[342263331,1731679839245,-151.0,0.00014794,2]
[342263332,1731679839256,-500.0,0.00014794,2]
[342263333,1731679839265,-151.0,0.00014794,2]
[342263334,1731679839275,-650.94,0.00014794,2]
[342263335,1731679839284,-500.0,0.00014794,2]
[342263336,1731679839294,-500.0,0.00014794,2]
[342263337,1731679839303,-183.59784938,0.00014794,2]
[342263338,1731679839312,-500.0,0.00014794,2]
[342263339,1731679839321,-500.0,0.00014794,2]
[342263340,1731679839332,-500.0,0.00014794,2]
[342263341,1731679839343,-665.96,0.00014794,2]
[342263342,1731679839355,-307.91655092,0.00014794,2]
[342263343,1731679839368,-500.0,0.00014794,2]
[342263344,1731679839376,-500.0,0.00014794,2]
[342263345,1731679839387,-2336.0,0.00014794,2]
[342263346,1731679839397,-542.17524767,0.00014794,2]
[342263347,1731679839408,-500.0,0.00014794,2]
[342263348,1731679839418,-142.60594773,0.00014794,2]
[342263349,1731679839430,-357.39405227,0.00014794,2]
[342263350,1731679839444,-500.0,0.00014794,2]
[342263351,1731679839455,-500.0,0.00014794,2]
[342263352,1731679839464,-500.0,0.00014794,2]
[342263353,1731679839474,-500.0,0.00014794,2]
[342263354,1731679839483,-604.27,0.00014794,2]
[342263355,1731679839492,-500.0,0.00014794,2]
[342263357,1731679839502,-500.0,0.00014794,2]
[342263358,1731679839512,-1198.91,0.00014794,2]
[342263359,1731679839521,-151.935076,0.00014794,2]
[342263360,1731679839530,-799.17,0.00014794,2]
[342263361,1731679839539,-500.0,0.00014794,2]
[342263362,1731679839549,-500.0,0.00014794,2]
[342263363,1731679839558,-151.935076,0.00014794,2]
[342263364,1731679839568,-1862.68,0.00014794,2]
[342263365,1731679839577,-500.0,0.00014794,2]
[342263366,1731679839593,-2066.06,0.00014794,2]
[342263367,1731679839606,-755.43,0.00014794,2]
[342263368,1731679839616,-500.0,0.00014794,2]
[342263369,1731679839625,-167.258974,0.00014794,2]
[342263370,1731679839634,-500.0,0.00014794,2]
[342263371,1731679839644,-151.0,0.00014794,2]
[342263372,1731679839653,-167.258974,0.00014794,2]
[342263373,1731679839663,-838.47284773,0.00014794,2]
[342263374,1731679839675,-431.60715227,0.00014794,2]
[342263375,1731679839685,-1379.72,0.00014794,2]
[342263376,1731679839694,-500.0,0.00014794,2]
[342263378,1731679839703,-500.0,0.00014794,2]
[342263379,1731679839713,-263.3948125,0.00014794,2]
[342263381,1731679839730,-308.5951875,0.00014794,2]
[342263382,1731679839740,-119.66501492,0.00014794,2]
[342263383,1731679839751,-380.33498508,0.00014794,2]
[342263384,1731679839760,-500.0,0.00014794,2]
[342263385,1731679839770,-488.81147278,0.00014794,2]
[342263397,1731679843071,-500.0,0.00013698,2]
[342263398,1731679843081,-500.0,0.00013698,2]
[342263399,1731679843092,-500.0,0.00013698,2]
[342263400,1731679843101,-271.89291533,0.00013972,2]
[342263401,1731679843111,-500.0,0.00013972,2]
[342263402,1731679843120,-500.0,0.00014246,2]
[342263403,1731679843129,-500.0,0.0001452,2]
[342263405,1731679843139,-39.39852722,0.00014794,2]
[342263407,1731679843147,-500.0,0.00014794,2]
[342263408,1731679843156,-7133.29,0.00014794,2]
[342263410,1731679843165,-500.0,0.00014794,2]
[342263412,1731679843175,-1580.35,0.00014794,2]
[342263414,1731679843183,-500.0,0.00014794,2]
[342263416,1731679843192,-500.0,0.00014794,2]
[342263419,1731679843203,-593.31,0.00014794,2]
[342263420,1731679843212,-500.0,0.00014794,2]
[342263422,1731679843221,-500.0,0.00014794,2]
[342263423,1731679843229,-1804.18319832,0.00014794,2]
[342263424,1731679843241,-3151.16471534,0.00014794,2]
[342263425,1731679843256,-869.94591213,0.00014794,2]
[342263426,1731679843268,-641.99132785,0.00014794,2]
[342263427,1731679843292,-489.65484636,0.00014794,2]
[342263428,1731679843307,-568.34,0.00014794,2]
[342263429,1731679843317,-500.0,0.00014794,2]
[342263430,1731679843330,-150.112233,0.000148,2]
[342263431,1731679843343,-150.112233,0.000148,2]
[342263432,1731679843357,-150.112233,0.000148,2]
[342263433,1731679843375,-150.112233,0.000149,2]
[342263434,1731679843391,-79.068751,0.000149,2]
[342263435,1731679843415,-71.043482,0.000149,2]
[342263436,1731679843426,-150.112233,0.000149,2]
[342263437,1731679843435,-150.112233,0.000149,2]
[342263438,1731679843445,-1808.15462348,0.000149,2]
[342263439,1731679843455,-150.112233,0.000149,2]
[342263440,1731679843464,-1000.0,0.00014917,2]
[342263441,1731679843473,-500.0,0.00014973,2]
[342263442,1731679843483,-500.0,0.00014973,2]
[342263443,1731679843492,-505.94957733,0.00014973,2]
[342263444,1731679843501,-220.43632437,0.00014973,2]
[342263445,1731679843511,-436.12896528,0.00015,2]
[342263446,1731679843520,-3560.74389724,0.00015,2]
[342263474,1731679846108,266.35,0.00010959,2]
[342263477,1731679846218,-1062.23,0.00013698,2]
[342263478,1731679846228,-428.07131522,0.00013698,2]
[342263479,1731679846237,-1062.23,0.00013972,2]
[342263480,1731679846246,-1062.23,0.00014246,2]
[342263481,1731679846256,-22955.77032411,0.00015,2]
[342263505,1731680802720,401.19,0.00025,120]
[342263509,1731680839602,-1013486.92821426,0.00021,60]
[342263527,1731680855953,5000.0,0.000151,14]
[342263528,1731680872054,1355.68592467,0.000151,14]
[342263572,1731681034367,-966.2931856,0.00012698,2]
[342263573,1731681034377,-666.3032064,0.00012864,2]
[342263574,1731681034386,-300.0,0.00013597,2]
[342263575,1731681034396,-500.0,0.00013698,2]
[342263576,1731681034406,-500.0,0.00013698,2]
[342263577,1731681034415,-500.0,0.00013698,2]
[342263578,1731681034425,-500.0,0.00013698,2]
[342263579,1731681034435,-590.7,0.00013698,2]
[342263580,1731681034443,-535.90900626,0.00013698,2]
[342263581,1731681034453,-500.0,0.00013698,2]
[342263582,1731681034464,-302.80445087,0.00013698,2]
[342263583,1731681034474,-528.55815265,0.00013698,2]
[342263584,1731681034483,-502.90773444,0.00013698,2]
[342263585,1731681034494,-502.66921834,0.00013698,2]
[342263586,1731681034503,-501.28719312,0.00013698,2]
[342263587,1731681034513,-500.0,0.00013698,2]
[342263588,1731681034524,-500.0,0.00013698,2]
[342263589,1731681034533,-500.0,0.00013698,2]
[342263590,1731681034543,-507.78997925,0.00013698,2]
[342263591,1731681034552,-504.07332519,0.00013698,2]
[342263592,1731681034562,-267.7137012,0.00013698,2]
[342263593,1731681034571,-288.84951891,0.00013698,2]
[342263594,1731681034580,-500.0,0.00013698,2]
[342263595,1731681034589,-500.0,0.00013698,2]
[342263596,1731681034599,-500.0,0.00013698,2]
[342263597,1731681034609,-500.0,0.00013698,2]
[342263598,1731681034619,-286.33313352,0.00013698,2]
[342263599,1731681034628,-500.0,0.00013698,2]
[342263600,1731681034638,-500.0,0.00013698,2]
[342263601,1731681034647,-500.0,0.00013698,2]
[342263602,1731681034658,-500.0,0.00013698,2]
[342263603,1731681034667,-542.73768613,0.00013698,2]
[342263604,1731681034677,-500.0,0.00013698,2]
[342263605,1731681034686,-500.0,0.00013698,2]
[342263606,1731681034695,-500.0,0.00013698,2]
[342263607,1731681034710,-500.0,0.00013698,2]
[342263608,1731681034723,-500.0,0.00013698,2]
[342263609,1731681034736,-500.0,0.00013698,2]
[342263610,1731681034747,-500.0,0.00013698,2]
[342263611,1731681034758,-501.0370828,0.00013698,2]
[342263612,1731681034768,-441.13017806,0.00013698,2]
[342263613,1731681034777,-501.52324158,0.00013698,2]
[342263614,1731681034788,-626.44856117,0.00013698,2]
[342263615,1731681034802,-500.0,0.00013698,2]
[342263616,1731681034811,-366.2880014,0.00013698,2]
[342263617,1731681034821,-500.0,0.00013698,2]
[342263618,1731681034831,-500.0,0.00013698,2]
[342263619,1731681034840,-501.70088862,0.00013698,2]
[342263620,1731681034849,-506.92277853,0.00013698,2]
[342263621,1731681034858,-500.0,0.00013698,2]
[342263622,1731681034868,-500.0,0.00013698,2]
[342263623,1731681034877,-500.0,0.00013698,2]
[342263624,1731681034887,-500.0,0.00013698,2]
[342263625,1731681034896,-500.0,0.00013698,2]
[342263626,1731681034906,-500.0,0.00013698,2]
[342263627,1731681034915,-500.0,0.00013698,2]
[342263628,1731681034925,-500.0,0.00013698,2]
[342263630,1731681034934,-501.45447203,0.00013698,2]
[342263631,1731681034944,-500.0,0.00013698,2]
[342263633,1731681034954,-500.0,0.00013698,2]
[342263635,1731681034968,-500.0,0.00013698,2]
[342263637,1731681034977,-500.0,0.00013698,2]
[342263639,1731681034987,-500.0,0.00013698,2]
[342263640,1731681034997,-502.46651273,0.00013698,2]
[342263642,1731681035006,-500.0,0.00013698,2]
[342263644,1731681035016,-547.35445166,0.00013698,2]
[342263646,1731681035026,-500.0,0.00013698,2]
[342263648,1731681035036,-500.0,0.00013698,2]
[342263649,1731681035045,-500.0,0.00013698,2]
[342263651,1731681035054,-500.0,0.00013698,2]
[342263653,1731681035064,-500.0,0.00013698,2]
[342263655,1731681035073,-503.79619872,0.00013698,2]
[342263657,1731681035082,-577.83,0.00013698,2]
[342263659,1731681035092,-500.0,0.00013698,2]
[342263660,1731681035101,-500.0,0.00013698,2]
[342263662,1731681035110,-507.43436734,0.00013698,2]
[342263664,1731681035119,-500.0,0.00013698,2]
[342263666,1731681035128,-500.0,0.00013698,2]
[342263668,1731681035137,-502.26686627,0.00013698,2]